bitfinex-derivatives/quotes_SOLF0:USTF0_20250323
["timestamp","ask_amount","ask_price","bid_price","bid_amount"]
[1742757086375,26.91552331,131.12,131.1,7.6290589]
[1742757087281,26.91552331,131.12,131.11,17.49878817]
[1742757088866,26.91552331,131.12,131.11,9.87028817]
[1742757089577,26.91552331,131.12,131.11,17.49878817]
[1742757093173,26.91552331,131.12,131.1,9.87034707]
[1742757093377,34.54402331,131.12,131.1,9.87034707]
[1742757094579,34.54402331,131.12,131.1,17.49934707]
[1742757096279,34.54402331,131.12,131.1,9.87034707]
[1742757100881,7.6285,131.11,131.1,9.87034707]
[1742757102884,7.6285,131.11,131.1,5.89e-05]
[1742757105379,17.49878817,131.11,131.1,5.89e-05]
[1742757112188,384.11878817,131.11,131.1,5.89e-05]
[1742757113886,376.49878817,131.11,131.1,5.89e-05]
[1742757116592,7.632,131.05,131.04,9.87028817]
[1742757116790,7.632,131.05,131.03,9.87028817]
[1742757117691,7.68092918,131.05,131.03,9.92744969]
[1742757118287,7.6326,131.04,131.03,9.92744969]
[1742757118492,7.6326,131.04,131.03,0.05716152]
[1742757121488,0.04892918,131.05,131.03,9.92744969]
[1742757121789,368.87028817,131.1,131.04,9.87028817]
[1742757121989,26.86,131.09,131.06,9.87028817]
[1742757122191,34.49,131.09,131.06,9.87028817]
[1742757122993,34.49,131.09,131.06,9.92675753]
[1742757123996,34.49,131.09,131.06,17.55815753]
[1742757125000,34.49,131.09,131.06,7.68786936]
[1742757128095,44.36028817,131.09,131.06,7.68786936]
[1742757128895,44.36028817,131.09,131.06,0.05646936]
[1742757129194,7.6304,131.08,131.06,0.05646936]
[1742757130793,44.36018817,131.09,131.06,0.05646936]
[1742757130994,36.73028817,131.09,131.06,0.05646936]
[1742757131799,7.6303,131.08,131.06,0.05646936]
[1742757132097,26.86,131.09,131.06,0.05646936]
[1742757132599,34.49,131.09,131.06,0.05646936]
[1742757133702,7.6303,131.08,131.06,0.05646936]
[1742757142214,26.86,131.09,131.06,9.92675753]
[1742757142816,26.86,131.09,131.07,7.6308]
[1742757143917,34.4898,131.09,131.06,17.55795753]
[1742757146314,7.6303,131.08,131.06,0.05646936]
[1742757150316,36.73028817,131.09,131.06,0.05646936]
[1742757150521,44.36028817,131.09,131.06,7.68786936]
[1742757150818,36.73028817,131.09,131.06,0.05646936]
[1742757151618,7.6303,131.08,131.06,0.05646936]
[1742757152719,7.6303,131.08,131.06,9.92675753]
[1742757156222,44.36028817,131.09,131.06,9.92675753]
[1742757157620,44.36028817,131.09,131.06,17.55805753]
[1742757159220,7.6303,131.08,131.06,9.92675753]
[1742757159622,7.6303,131.08,131.06,0.05646936]
[1742757159822,7.6308,131.07,131.06,0.05646936]
[1742757160724,17.50088817,131.08,131.06,0.05646936]
[1742757165935,7.6308,131.07,131.06,0.05646936]
[1742757167232,17.50108817,131.07,131.06,0.05646936]
[1742757194042,17.50108817,131.07,131.03,9.87028817]
[1742757194043,7.6321,131.05,131.03,9.87028817]
[1742757194247,26.86,131.04,131.02,17.50368817]
[1742757195244,26.91806873,131.04,131.02,17.55713103]
[1742757199344,34.55066873,131.04,131.02,0.05344286]
[1742757199548,44.4209569,131.04,131.02,0.05344286]
[1742757200248,7.6332,131.03,131.02,0.05344286]
[1742757203251,44.4212569,131.04,131.02,0.05344286]
[1742757203846,17.50348817,131.03,131.02,0.05344286]
[1742757205254,9.87028817,131.03,131.02,0.05344286]
[1742757209053,26.91806873,131.04,131.02,0.05344286]
[1742757209550,26.91806873,131.04,131.02,7.68694286]
[1742757211255,26.91806873,131.04,131.03,7.6332]
[1742757211455,0.05806873,131.04,131.03,7.6332]
[1742757211656,26.91806873,131.04,131.03,7.6332]
[1742757214155,26.91806873,131.04,131.02,7.68694286]
[1742757215058,26.91806873,131.04,131.02,0.05344286]
[1742757218663,0.05806873,131.04,131.02,0.05344286]
[1742757218865,26.86,131.03,131.02,0.05344286]
[1742757238080,26.86,131.03,131.02,7.68714286]
[1742757241783,26.86,131.03,131.02,0.05344286]
[1742757243988,44.36348817,131.03,131.02,0.05344286]
[1742757257295,7.635,131.0,130.96,9.87028817]
[1742757257493,26.84,130.99,130.96,9.87028817]
[1742757257993,26.84,130.99,130.96,17.50708817]
[1742757258296,26.84,130.99,130.97,9.87028817]
[1742757258594,26.89483152,130.99,130.97,17.50638817]
[1742757258794,26.89483152,130.99,130.97,9.87028817]
[1742757259294,26.89483152,130.99,130.98,7.6361]
[1742757260895,26.89483152,130.99,130.97,7.6363]
[1742757261595,26.89483152,130.99,130.98,7.6361]
[1742757262895,26.89483152,130.99,130.97,7.6364]
[1742757277799,34.53043152,130.99,130.97,7.6364]
[1742757278002,44.40071969,130.99,130.97,7.6364]
[1742757278903,36.76511969,130.99,130.97,7.6364]
[1742757281605,36.76511969,130.99,130.96,17.55714907]
[1742757284012,44.40061969,130.99,130.96,17.55714907]
[1742757284907,36.76511969,130.99,130.96,17.55714907]
[1742757286312,36.76511969,130.99,130.97,7.6367]
[1742757287212,36.76511969,130.99,130.96,17.55704907]
[1742757288613,44.40061969,130.99,130.96,17.55704907]
[1742757291216,44.40061969,130.99,130.97,7.6366]
[1742757293118,36.76511969,130.99,130.97,7.6366]
[1742757293319,26.89483152,130.99,130.97,7.6366]
[1742757300123,26.89483152,130.99,130.97,17.50688817]
[1742757300423,359.0,131.03,130.98,9.87028817]
[1742757300623,26.84,131.02,131.0,9.87028817]
[1742757300820,26.84,131.02,131.0,17.50488817]
[1742757301725,26.89690767,131.02,131.0,17.55733574]
[1742757303326,34.53070767,131.02,131.0,0.05244757]
[1742757303627,44.40099584,131.02,131.0,0.05244757]
[1742757304231,17.56099584,131.02,131.0,0.05244757]
[1742757304527,26.84,131.01,131.0,0.05244757]
[1742757304722,44.34458817,131.01,131.0,0.05244757]
[1742757305122,36.71028817,131.01,130.96,9.87028817]
[1742757305323,7.6362,130.98,130.95,17.50798817]
[1742757305521,26.84,130.97,130.95,17.50798817]
[1742757305821,34.4768,130.97,130.95,9.87028817]
[1742757306022,34.4768,130.97,130.94,17.50838817]
[1742757306328,26.89000663,130.97,130.95,0.05002926]
[1742757306929,26.89000663,130.97,130.95,17.55811743]
[1742757311535,26.89000663,130.97,130.96,7.6372]
[1742757313132,44.3970948,130.97,130.95,0.05002926]
[1742757313435,9.87028817,130.96,130.95,0.05002926]
[1742757313832,9.87028817,130.96,130.9,7.6405]
[1742757314034,26.89000663,130.97,130.9,9.87028817]
[1742757314035,9.87028817,130.93,130.9,9.87028817]
[1742757314229,26.84,130.92,130.9,9.87028817]
[1742757315124,26.8959405,130.92,130.91,9.87028817]
[1742757315634,26.8959405,130.92,130.91,17.51048817]
[1742757316038,26.8959405,130.92,130.91,9.87028817]
[1742757318437,26.8959405,130.92,130.91,17.51048817]
[1742757319937,26.8959405,130.92,130.91,7.6402]
[1742757325939,26.8959405,130.92,130.9,17.56109906]
[1742757326143,26.8959405,130.92,130.9,9.92069906]
[1742757326340,34.5358405,130.92,130.9,7.69101089]
[1742757326739,26.8959405,130.92,130.9,0.05041089]
[1742757327139,34.5357405,130.92,130.9,0.05041089]
[1742757328740,26.8959405,130.92,130.9,0.05041089]
[1742757329445,26.8959405,130.92,130.9,7.69101089]
[1742757336950,26.8959405,130.92,130.9,17.56129906]
[1742757338645,26.8959405,130.92,130.91,7.6402]
[1742757340756,26.8959405,130.92,130.91,17.51048817]
[1742757350770,0.0559405,130.92,130.91,17.51048817]
[1742757353366,0.0559405,130.92,130.91,9.87028817]
[1742757353770,0.0559405,130.92,130.9,9.92069906]
[1742757354069,0.0559405,130.92,130.9,0.05041089]
[1742757354571,7.6958405,130.92,130.9,0.05041089]
[1742757355869,7.6402,130.91,130.9,0.05041089]
[1742757356472,7.6958405,130.92,130.9,0.05041089]
[1742757356968,7.6402,130.91,130.9,0.05041089]
[1742757357171,17.51048817,130.91,130.9,0.05041089]
[1742757360475,9.87028817,130.91,130.9,0.05041089]
[1742757361379,9.92622867,130.92,130.9,0.05041089]
[1742757362180,9.92622867,130.92,130.9,7.69111089]
[1742757363186,17.56592867,130.92,130.9,0.05041089]
[1742757363586,9.92622867,130.92,130.9,0.05041089]
[1742757365189,17.56582867,130.92,130.9,0.05041089]
[1742757369784,9.87028817,130.91,130.9,0.05041089]
[1742757369991,17.51048817,130.91,130.9,0.05041089]
[1742757370891,17.51048817,130.91,130.86,9.87028817]
[1742757370892,7.6416,130.89,130.86,9.87028817]
[1742757371087,26.84,130.88,130.85,273.41028817]
[1742757371291,26.84,130.88,130.85,9.87028817]
[1742757372188,26.89095881,130.88,130.85,9.92856017]
[1742757372593,7.6425,130.87,130.85,9.92856017]
[1742757372794,26.89095881,130.88,130.85,9.92856017]
[1742757372993,34.53325881,130.88,130.85,9.92856017]
[1742757373194,36.76124698,130.88,130.85,0.058272]
[1742757373693,7.6428,130.87,130.85,0.058272]
[1742757377195,9.87028817,130.87,130.85,0.058272]
[1742757377899,36.76124698,130.88,130.85,0.058272]
[1742757378400,7.6426,130.87,130.85,0.058272]
[1742757378798,7.6426,130.87,130.85,9.92856017]
[1742757381994,44.40344698,130.88,130.85,9.92856017]
[1742757382600,7.6427,130.87,130.85,9.92856017]
[1742757385901,7.6427,130.87,130.85,0.058272]
[1742757388900,26.89095881,130.88,130.85,9.92856017]
[1742757389205,26.89095881,130.88,130.86,9.87028817]
[1742757389507,26.89095881,130.88,130.86,17.51328817]
[1742757390006,26.89095881,130.88,130.86,9.87028817]
[1742757391207,34.53325881,130.88,130.86,9.87028817]
[1742757396012,34.53325881,130.88,130.85,9.92856017]
[1742757397509,34.53325881,130.88,130.85,17.57206017]
[1742757401021,7.6426,130.87,130.85,9.92856017]
[1742757401819,34.53315881,130.88,130.85,9.92856017]
[1742757404117,7.6425,130.87,130.85,9.92856017]
[1742757407221,7.6425,130.87,130.85,17.57216017]
[1742757407422,34.53315881,130.88,130.85,17.57216017]
[1742757422535,0.05095881,130.88,130.87,9.87028817]
[1742757423128,9.87028817,130.94,130.87,9.87028817]
[1742757423336,369.57937659,130.95,130.93,9.87028817]
[1742757423532,37.41937659,130.95,130.94,9.87028817]
[1742757423734,37.41937659,130.95,130.93,17.50898817]
[1742757424433,37.47483037,130.95,130.94,7.6384]
[1742757424633,26.89545378,130.95,130.94,7.6384]
[1742757425335,26.89545378,130.95,130.94,17.50868817]
[1742757425536,0.05545378,130.95,130.94,17.50868817]
[1742757425835,69.32735448,130.97,130.96,7.6372]
[1742757425836,42.50735448,130.97,130.96,7.6372]
[1742757426037,42.50735448,130.97,130.96,17.50748817]
[1742757427836,42.50735448,130.97,130.96,9.87028817]
[1742757428035,92.83354166,130.98,130.96,9.87028817]
[1742757428036,7.69226729,130.98,130.96,9.87028817]
[1742757428339,7.69226729,130.98,130.97,9.87028817]
[1742757429041,0.05616729,130.98,130.97,9.87028817]
[1742757430142,7.69226729,130.98,130.96,9.927924]
[1742757430438,9.87028817,130.97,130.96,0.05763583]
[1742757431243,7.6367,130.97,130.96,0.05763583]
[1742757439250,17.50698817,130.97,130.96,0.05763583]
[1742757439653,7.6367,130.97,130.96,0.05763583]
[1742757441855,0.05616729,130.98,130.96,9.927924]
[1742757443753,7.69226729,130.98,130.96,9.927924]
[1742757444355,0.05616729,130.98,130.96,9.927924]
[1742757445355,0.05616729,130.98,130.96,17.565124]
[1742757445855,7.69226729,130.98,130.96,9.927924]
[1742757446157,0.05616729,130.98,130.96,9.927924]
[1742757446658,7.69226729,130.98,130.96,9.927924]
[1742757447053,0.05616729,130.98,130.96,9.927924]
[1742757447359,0.05616729,130.98,130.96,17.565024]
[1742757450260,7.69256729,130.98,130.96,9.927924]
[1742757452459,7.69256729,130.98,130.96,17.565124]
[1742757454268,7.69256729,130.98,130.96,9.927924]
[1742757455166,7.69256729,130.98,130.96,17.565024]
[1742757455768,0.05616729,130.98,130.96,17.565024]
[1742757457266,0.05616729,130.98,130.97,17.50698817]
[1742757457572,9.87028817,131.03,130.97,9.87028817]
[1742757457869,26.8,131.02,131.0,17.50478817]
[1742757458067,26.8,131.03,131.0,9.87028817]
[1742757458262,36.67028817,131.03,130.99,9.87028817]
[1742757458462,7.6349,131.0,130.99,9.87028817]
[1742757458669,7.6349,131.0,130.98,9.87028817]
[1742757458870,0.05654574,131.01,130.98,9.92901623]
[1742757459271,7.6355,130.99,130.98,9.92901623]
[1742757459472,7.6355,130.99,130.98,0.05872806]
[1742757459771,17.50578817,130.99,130.98,0.05872806]
[1742757463972,17.50578817,130.99,130.98,2.806e-05]
[1742757474176,44.30578817,130.99,130.98,2.806e-05]
[1742757481485,44.30578817,130.99,130.91,275.31378817]
[1742757481486,36.67028817,130.99,130.91,275.31378817]
[1742757481684,9.87028817,130.94,130.91,263.46]
[1742757481881,7.6403,130.91,130.89,2.1405]
[1742757482187,36.67028817,130.91,130.88,42.57063718]
[1742757482577,36.72186394,130.91,130.88,42.62610398]
[1742757482982,7.6413,130.89,130.88,42.62610398]
[1742757483182,7.6413,130.89,130.88,0.0554668]
[1742757483183,17.51158817,130.89,130.88,0.0554668]
[1742757484991,9.87028817,130.89,130.88,0.0554668]
[1742757485491,9.87028817,130.9,130.88,0.0554668]
[1742757487390,0.05157577,130.91,130.89,9.87028817]
[1742757487985,0.05157577,130.91,130.89,17.51118817]
[1742757488386,0.05157577,130.91,130.89,9.87028817]
[1742757488886,0.05157577,130.91,130.88,17.56735497]
[1742757489287,0.05157577,130.91,130.88,9.92575497]
[1742757489692,0.05157577,130.91,130.89,7.6413]
[1742757491893,9.92186394,130.91,130.89,7.6413]
[1742757492090,9.92186394,130.91,130.88,7.6970668]
[1742757493695,9.92186394,130.91,130.89,7.6412]
[1742757496001,9.87028817,130.9,130.88,0.0554668]
[1742757496299,36.67028817,130.9,130.88,0.0554668]
[1742757496596,9.87028817,130.89,130.88,0.0554668]
[1742757496798,17.51158817,130.89,130.88,0.0554668]
[1742757503197,7.6434,130.86,130.83,17.51488817]
[1742757504401,7.6920569,130.86,130.83,17.56676153]
[1742757507805,7.6920569,130.86,130.84,17.51438817]
[1742757508206,0.0486569,130.86,130.84,17.51438817]
[1742757508403,0.0486569,130.86,130.85,9.87028817]
[1742757509607,0.0486569,130.86,130.85,17.51398817]
[1742757510107,0.0486569,130.86,130.85,9.87028817]
[1742757510497,0.0486569,130.86,130.84,7.6439]
[1742757510703,0.0486569,130.86,130.85,9.87028817]
[1742757510903,0.0486569,130.86,130.83,7.69647336]
[1742757511103,0.0486569,130.86,130.83,0.05187336]
[1742757511307,0.0486569,130.86,130.83,9.92216153]
[1742757511507,7.6919569,130.86,130.83,17.56646153]
[1742757513311,7.6919569,130.86,130.84,7.6441]
[1742757514112,0.0486569,130.86,130.84,9.87028817]
[1742757514310,0.0486569,130.86,130.85,9.87028817]
[1742757514510,26.82,130.88,130.85,9.87028817]
[1742757514811,7.6416,130.89,130.86,17.51298817]
[1742757515709,7.69945829,130.89,130.86,17.5624007]
[1742757516506,0.05785829,130.89,130.88,9.87028817]
[1742757517114,0.05785829,130.89,130.88,17.51218817]
[1742757523920,19.15003821,130.97,130.88,9.87028817]
[1742757523921,9.87028817,130.94,130.88,9.87028817]
[1742757524221,26.82,130.93,130.9,9.87028817]
[1742757525111,34.51398584,130.93,130.91,7.6399]
[1742757525323,26.87468584,130.93,130.91,9.87028817]
[1742757525718,26.87468584,130.93,130.91,17.51018817]
[1742757525918,0.05468584,130.93,130.91,17.51018817]
[1742757527724,7.69378584,130.93,130.91,17.51018817]
[1742757529129,7.69378584,130.93,130.91,9.87028817]
[1742757531129,7.69378584,130.93,130.91,17.51048817]
[1742757531627,0.05468584,130.93,130.91,17.51048817]
[1742757531827,0.05468584,130.93,130.92,9.87028817]
[1742757532228,0.05468584,130.93,130.92,17.50988817]
[1742757533835,395.67028817,130.97,130.94,7.6383]
[1742757534032,395.67028817,130.97,130.94,17.50858817]
[1742757534335,7.6373,130.96,130.94,17.50858817]
[1742757534728,403.30728817,130.97,130.95,7.6377]
[1742757534925,7.637,130.97,130.95,17.50798817]
[1742757536535,44.30668817,130.98,130.96,7.6372]
[1742757536736,34.4364,130.98,130.96,7.6372]
[1742757536926,34.4364,130.98,130.95,9.87028817]
[1742757536927,26.8,130.98,130.95,9.87028817]
[1742757537130,7.637,130.97,130.95,9.87028817]
[1742757537331,36.67028817,130.98,130.94,9.92862723]
[1742757537531,7.6372,130.96,130.94,9.92862723]
[1742757538731,34.4369,130.97,130.94,9.92862723]
[1742757539630,7.6363,130.98,130.95,9.87028817]
[1742757539826,7.6363,130.98,130.96,9.87028817]
[1742757540330,7.6356,130.99,130.96,9.87028817]
[1742757541137,7.6356,130.99,130.96,17.50698817]
[1742757542437,36.67028817,131.0,130.97,17.50698817]
[1742757542438,34.4352,131.0,130.97,17.50698817]
[1742757542638,26.8,131.0,130.97,9.87028817]
[1742757542831,395.67028817,131.01,130.97,9.92735101]
[1742757543235,7.6355,130.99,130.97,9.92735101]
[1742757543435,9.87028817,131.0,130.97,0.05706284]
[1742757543638,9.87028817,131.0,130.97,9.92735101]
[1742757544440,368.87028817,131.01,130.98,9.87028817]
[1742757544743,359.0,131.01,130.98,9.87028817]
[1742757545039,359.0,131.01,130.99,9.87028817]
[1742757545242,366.6346,131.01,130.99,9.87028817]
[1742757545540,359.0,131.01,130.99,9.87028817]
[1742757545740,366.6346,131.01,130.99,9.87028817]
[1742757546237,26.8,131.03,131.0,9.87028817]
[1742757546735,26.8,131.03,131.0,9.92337492]
[1742757546941,7.6342,131.02,131.0,9.92337492]
[1742757549345,7.6343,131.01,131.0,9.92337492]
[1742757550145,7.6343,131.01,131.0,0.05308675]
[1742757550440,44.28458817,131.01,131.0,0.05308675]
[1742757562157,34.4143,131.01,131.0,0.05308675]
[1742757563754,7.6339,131.02,131.0,9.92337492]
[1742757565158,7.6343,131.01,131.0,9.92337492]
[1742757565458,7.6343,131.01,131.0,0.05308675]
[1742757569357,7.6334,131.03,131.0,9.92337492]
[1742757569562,9.87028817,131.06,131.02,9.87028817]
[1742757569758,36.65028817,131.05,131.01,17.50438817]
[1742757569958,36.65028817,131.05,130.99,26.78]
[1742757569959,7.6332,131.03,131.0,9.87028817]
[1742757570154,9.87028817,131.04,131.02,0.05688702]
[1742757570359,9.87028817,131.03,131.02,0.05688702]
[1742757570553,17.50348817,131.03,131.02,0.05688702]
[1742757572968,36.65028817,131.05,131.02,0.05688702]
[1742757574467,7.6332,131.03,131.02,0.05688702]
[1742757576363,34.4132,131.03,131.02,0.05688702]
[1742757578564,7.6332,131.03,131.02,0.05688702]
[1742757580471,359.0,131.07,131.02,9.92717519]
[1742757580669,368.87028817,131.07,131.03,9.87028817]
[1742757580866,385.78,131.07,131.03,9.87028817]
[1742757581473,7.6317,131.06,131.03,17.50348817]
[1742757582272,366.6311,131.07,131.04,17.50278817]
[1742757582571,34.4111,131.07,131.04,17.50278817]
[1742757582771,34.4111,131.07,131.05,17.50218817]
[1742757583165,34.4111,131.07,131.05,9.92657546]
[1742757585277,7.6311,131.07,131.05,9.92657546]
[1742757588083,7.6314,131.06,131.05,9.92657546]
[1742757588282,7.6314,131.06,131.05,0.05628729]
[1742757596601,7.6314,131.06,131.05,9.92657546]
[1742757600296,7.6314,131.06,131.05,0.05628729]
[1742757601802,17.50168817,131.06,131.05,0.05628729]
[1742757602699,7.6337,131.02,131.01,263.36]
[1742757602905,9.87028817,131.03,130.99,9.87028817]
[1742757603105,36.63028817,131.03,130.99,9.87028817]
[1742757603302,7.6349,131.0,130.99,9.87028817]
[1742757603603,7.6349,131.0,130.98,14.01008817]
[1742757603905,7.6355,130.99,130.98,9.92072152]
[1742757608806,7.6894437,131.0,130.98,9.92072152]
[1742757609108,0.0542437,131.0,130.99,9.87028817]
[1742757609406,7.6891437,131.0,130.99,9.87028817]
[1742757610007,0.0542437,131.0,130.99,9.87028817]
[1742757613215,0.0542437,131.0,130.99,17.50578817]
[1742757617612,36.70453187,131.0,130.98,0.05043335]
[1742757617812,9.87028817,130.99,130.98,0.05043335]
[1742757619416,17.50578817,130.99,130.98,0.05043335]
[1742757628420,7.6355,130.99,130.98,0.05043335]
[1742757631929,17.50578817,130.99,130.98,0.05043335]
[1742757648928,36.70453187,131.0,130.98,0.05043335]
[1742757649234,44.33973187,131.0,130.98,0.05043335]
[1742757652641,9.87028817,130.99,130.98,0.05043335]
[1742757664662,36.65028817,130.99,130.98,0.05043335]
[1742757672873,26.78,130.99,130.98,7.68653335]
[1742757675271,26.78,130.99,130.98,0.05043335]
[1742757676167,44.28578817,130.99,130.98,0.05043335]
[1742757676369,36.65028817,130.99,130.98,0.05043335]
[1742757678975,44.28578817,130.99,130.98,0.05043335]
[1742757680170,7.6369,130.97,130.93,9.87028817]
[1742757680376,36.65028817,130.96,130.92,273.33028817]
[1742757680669,36.65028817,130.96,130.94,7.6381]
[1742757681270,26.83651333,130.96,130.95,7.6378]
[1742757688274,26.83651333,130.96,130.95,17.50808817]
[1742757690378,0.05651333,130.96,130.95,17.50808817]
[1742757711095,0.05651333,130.96,130.95,19.66578817]
[1742757734409,36.6868015,130.96,130.94,0.05438857]
[1742757734602,9.87028817,130.95,130.89,85.14127437]
[1742757734802,9.87028817,130.91,130.89,85.14127437]
[1742757735009,44.27048817,130.91,130.89,85.14127437]
[1742757735809,44.27048817,130.91,130.89,85.19420205]
[1742757736706,36.63028817,130.91,130.89,85.19420205]
[1742757737310,44.27048817,130.91,130.89,85.19420205]
[1742757740014,7.6407,130.9,130.89,0.05292768]
[1742757740315,17.51098817,130.9,130.89,0.05292768]
[1742757746114,7.6407,130.9,130.89,0.05292768]
[1742757746315,44.27068817,130.91,130.89,0.05292768]
[1742757747619,26.78,130.9,130.89,7.69382768]
[1742757751413,7.6402,130.91,130.89,7.69382768]
[1742757751618,26.78,130.9,130.89,7.69382768]
[1742757753920,26.78,130.9,130.89,0.05292768]
[1742757754222,34.4207,130.9,130.89,0.05292768]
[1742757755421,44.29098817,130.9,130.89,0.05292768]
[1742757758526,7.6432,130.86,130.84,17.51418817]
[1742757758725,7.6432,130.86,130.84,9.87028817]
[1742757759221,7.6432,130.86,130.83,271.0845]
[1742757759428,7.6432,130.86,130.83,280.95478817]
[1742757759624,7.69419346,130.86,130.83,281.01211166]
[1742757760529,0.05099346,130.86,130.83,281.01211166]
[1742757760730,0.05099346,130.86,130.84,7.6441]
[1742757761426,0.05099346,130.86,130.84,17.51438817]
[1742757766441,7.69419346,130.86,130.84,9.87028817]
[1742757766737,0.05099346,130.86,130.84,9.87028817]
[1742757766939,0.05099346,130.86,130.84,17.51448817]
[1742757767539,7.69419346,130.86,130.83,281.01191166]
[1742757770043,0.05099346,130.86,130.84,7.6442]
[1742757772548,0.05099346,130.86,130.85,7.6437]
[1742757780253,0.05099346,130.86,130.84,17.51408817]
[1742757780653,7.69419346,130.86,130.84,9.87028817]
[1742757781252,7.69419346,130.86,130.83,281.01221166]
[1742757782853,0.05099346,130.86,130.84,7.6442]
[1742757786050,0.05099346,130.86,130.84,17.51448817]
[1742757788069,0.05099346,130.86,130.85,7.6437]
[1742757789858,0.05099346,130.86,130.85,17.51398817]
[1742757792360,0.05099346,130.86,130.85,7.6437]
[1742757792756,0.05099346,130.86,130.84,7.644]
[1742757798958,0.05099346,130.86,130.85,7.6437]
[1742757801366,0.05099346,130.86,130.84,17.51418817]
[1742757801567,0.05099346,130.86,130.84,7.6439]
[1742757802167,0.05099346,130.86,130.85,7.6437]
[1742757803265,0.05099346,130.86,130.84,7.6439]
[1742757803466,0.05099346,130.86,130.84,17.51418817]
[1742757803766,0.05099346,130.86,130.85,7.6437]
[1742757806570,0.05099346,130.86,130.85,17.51398817]
[1742757842803,7.69439346,130.86,130.83,9.92761166]
[1742757843000,9.87028817,130.84,130.83,0.05732349]
[1742757843401,17.51448817,130.84,130.83,0.05732349]
[1742757849609,9.87028817,130.84,130.83,0.05732349]
[1742757851214,9.87028817,130.84,130.78,2.0274]
[1742757851509,9.87028817,130.81,130.78,9.87028817]
[1742757851712,44.29688817,130.8,130.77,17.51828817]
[1742757852207,36.65028817,130.8,130.77,17.51828817]
[1742757852412,36.70678268,130.8,130.77,17.57413692]
[1742757853116,36.70678268,130.8,130.78,7.6477]
[1742757854611,44.35338268,130.8,130.77,17.57433692]
[1742757854812,36.70678268,130.8,130.77,9.92613692]
[1742757855315,9.87028817,130.78,130.77,0.05584875]
[1742757856115,17.51808817,130.78,130.77,0.05584875]
[1742757865716,9.87028817,130.78,130.71,9.87028817]
[1742757865917,9.87028817,130.75,130.72,7.6509]
[1742757866111,26.78,130.74,130.72,7.6509]
[1742757866715,26.83179256,130.74,130.72,7.70657549]
[1742757867214,26.83179256,130.74,130.73,7.6507]
[1742757868218,26.83179256,130.74,130.72,7.70677549]
[1742757868610,26.83179256,130.74,130.72,0.05567549]
[1742757868806,34.48219256,130.74,130.72,0.05567549]
[1742757869314,26.83179256,130.74,130.72,7.70697549]
[1742757878421,34.48189256,130.74,130.72,7.70697549]
[1742757880019,26.83179256,130.74,130.72,7.70697549]
[1742757880222,26.83179256,130.74,130.73,7.6507]
[1742757880421,26.83179256,130.74,130.72,0.05567549]
[1742757881218,26.83179256,130.74,130.72,7.70657549]
[1742757882328,44.35268073,130.74,130.72,0.05567549]
[1742757882527,9.87028817,130.73,130.68,9.87028817]
[1742757882728,9.87028817,130.72,130.64,270.0802]
[1742757882928,44.30248817,130.71,130.68,7.6532]
[1742757883116,26.78,130.7,130.68,7.6532]
[1742757883727,26.83019693,130.7,130.68,7.70210171]
[1742757883928,26.83019693,130.7,130.69,7.653]
[1742757884730,26.83019693,130.7,130.69,17.52328817]
[1742757886421,26.83019693,130.7,130.69,7.653]
[1742757892729,26.83019693,130.7,130.69,17.52328817]
[1742757894033,26.83019693,130.7,130.69,7.653]
[1742757927355,34.48259693,130.7,130.68,0.04890171]
[1742757927557,44.3528851,130.7,130.68,0.04890171]
[1742757927757,9.87028817,130.69,130.63,42.57063718]
[1742757927962,9.87028817,130.66,130.65,7.6552]
[1742757928157,26.78,130.66,130.65,7.6552]
[1742757931759,36.65028817,130.66,130.64,0.0532368]
[1742757932364,44.30538817,130.66,130.64,0.0532368]
[1742757932863,44.30538817,130.66,130.64,7.7091368]
[1742757934362,44.30538817,130.66,130.64,0.0532368]
[1742757934572,7.6554,130.65,130.64,0.0532368]
[1742757934763,36.65028817,130.66,130.64,0.0532368]
[1742757935163,44.30538817,130.66,130.64,0.0532368]
[1742757935365,9.87028817,130.65,130.64,0.0532368]
[1742757936866,17.52568817,130.65,130.64,0.0532368]
[1742757937767,9.87028817,130.65,130.64,0.0532368]
[1742757938464,9.87028817,130.65,130.64,7.7092368]
[1742757940672,17.52568817,130.65,130.64,0.0532368]
[1742757944667,9.87028817,130.65,130.64,0.0532368]
[1742757948476,17.52568817,130.65,130.64,0.0532368]
[1742757950379,9.87028817,130.65,130.64,0.0532368]
[1742757952581,17.52568817,130.65,130.64,0.0532368]
[1742757960684,26.78,130.66,130.64,0.0532368]
[1742757960887,26.78,130.66,130.64,7.7091368]
[1742757961289,36.65028817,130.66,130.64,7.7091368]
[1742757961992,36.67028817,130.66,130.64,7.7091368]
[1742757962789,26.8,130.66,130.64,7.7091368]
[1742757962990,36.67028817,130.66,130.64,7.7091368]
[1742757964590,0.05261342,130.67,130.65,9.87028817]